[Event "elllobregat Open Chess TnmT- 2nd Edition 2021"]
[Site "Castelldefels, Spain"]
[Date "2021.11.30"]
[Round "1.6"]
[White "Sethuraman, S.P."]
[Black "Cruz, Filemon"]
[Result "1-0"]
[TimeControl "90min/40moves + 30min/end + 30sec increment per move starting from move 1"]
[WhiteTitle "GM"]
[BlackTitle "IM"]
[WhiteFideId "5021596"]
[BlackFideId "3800296"]
[WhiteElo "2620"]
[BlackElo "2310"]

1. e4 {[%emt 00:00:46]} c5 {[%emt 00:00:03]} 2. Nf3 {[%clk 01:31:02]} {[%emt
00:00:10]} d6 {[%clk 01:30:34]} {[%emt 00:00:24]} 3. d4 {[%clk 01:31:12]}
{[%emt 00:00:20]} cxd4 {[%clk 01:30:37]} {[%emt 00:00:27]} 4. Nxd4 {[%clk
01:31:35]} {[%emt 00:00:06]} Nf6 {[%clk 01:30:50]} {[%emt 00:00:17]} 5. Nc3
{[%emt 00:00:35]} a6 {[%clk 01:29:46]} {[%emt 00:01:06]} 6. Be3 {[%clk
01:32:21]} {[%emt 00:00:08]} e5 {[%clk 01:29:38]} {[%emt 00:00:38]} 7. Nb3
{[%clk 01:32:44]} {[%emt 00:00:07]} Be6 {[%clk 01:29:51]} {[%emt 00:00:16]} 8.
Qd2 {[%clk 01:33:07]} {[%emt 00:00:07]} Be7 {[%clk 01:30:05]} {[%emt 00:00:17]}
9. f3 {[%emt 00:02:12]} h5 {[%clk 01:27:49]} {[%emt 00:00:40]} 10. O-O-O {[%clk
01:33:29]} {[%emt 00:00:32]} Nbd7 {[%clk 01:27:52]} {[%emt 00:00:28]} 11. Kb1
{[%emt 00:00:43]} Rc8 {[%emt 00:03:48]} 12. a4 {[%emt 00:00:46]} Nb6 {[%emt
00:05:42]} 13. a5 {[%emt 00:00:12]} Nc4 {[%clk 01:23:34]} {[%emt 00:00:27]} 14.
Bxc4 {[%clk 01:29:30]} {[%emt 00:00:08]} Rxc4 {[%emt 00:00:39]} 15. Bg5 {[%emt
00:03:27]} Qc7 {[%emt 00:27:05]} 16. Bxf6 {[%clk 00:54:45]} {[%emt 00:13:01]}
gxf6 {[%clk 01:16:05]} {[%emt 00:00:32]} 17. Rhe1 {[%emt 00:13:05]} f5 {[%clk
01:07:42]} {[%emt 00:01:43]} 18. Nd5 {[%emt 00:14:20]} Bxd5 {[%clk 01:06:55]}
{[%emt 00:00:51]} 19. exd5 {[%clk 00:36:18]} {[%emt 00:00:09]} Qd7 {[%clk
01:00:20]} {[%emt 00:07:05]} 20. Qd3 {[%emt 00:03:06]} Ra4 {[%emt 00:04:20]} 21.
c4 {[%emt 00:09:12]} Kf8 {[%emt 00:03:35]} 22. Rc1 {[%emt 00:09:50]} Rg8 {[%clk
00:43:21]} {[%emt 00:04:19]} 23. Rc2 {[%clk 00:21:41]} {[%emt 00:01:43]} Rb4
{[%clk 00:39:40]} {[%emt 00:04:11]} 24. Nc1 {[%clk 00:17:59]} {[%emt 00:04:11]}
Bd8 {[%clk 00:25:52]} {[%emt 00:14:19]} 25. Na2 {[%clk 00:14:30]} {[%emt
00:03:59]} Bxa5 {[%clk 00:20:53]} {[%emt 00:05:29]} 26. Nxb4 {[%clk 00:14:28]}
{[%emt 00:00:31]} Bxb4 {[%clk 00:21:13]} {[%emt 00:00:11]} 27. Ree2 {[%clk
00:12:36]} {[%emt 00:02:22]} Rg6 {[%clk 00:18:34]} {[%emt 00:03:08]} 28. f4
{[%clk 00:12:17]} {[%emt 00:00:49]} e4 {[%clk 00:18:40]} {[%emt 00:00:24]} 29.
Qh3 {[%clk 00:12:38]} {[%emt 00:00:09]} Rg4 {[%clk 00:14:11]} {[%emt 00:04:59]}
30. Qxh5 {[%clk 00:12:55]} {[%emt 00:00:14]} Bc5 {[%clk 00:14:31]} {[%emt
00:00:10]} 31. h3 {[%clk 00:09:01]} {[%emt 00:04:23]} Rg3 {[%clk 00:13:44]}
{[%emt 00:01:17]} 32. Qh8+ {[%clk 00:07:50]} {[%emt 00:01:41]} Rg8 {[%emt
00:03:26]} 33. Qc3 {[%emt 00:01:57]} Qd8 {[%clk 00:12:38]} {[%emt 00:00:31]} 34.
g4 {[%clk 00:04:16]} {[%emt 00:00:46]} Qb6 {[%clk 00:10:51]} {[%emt 00:02:18]}
35. Qf6 {[%clk 00:04:02]} {[%emt 00:00:42]} Bd4 {[%clk 00:11:08]} {[%emt
00:00:14]} 36. Qxf5 {[%clk 00:03:23]} {[%emt 00:01:09]} e3 {[%clk 00:11:32]}
{[%emt 00:00:06]} 37. g5 {[%clk 00:02:53]} {[%emt 00:01:01]} Qb3 {[%clk
00:09:54]} {[%emt 00:02:09]} 38. Re1 {[%clk 00:03:02]} {[%emt 00:00:21]} a5
{[%clk 00:08:57]} {[%emt 00:01:27]} 39. Qe4 {[%clk 00:33:04]} {[%emt 00:00:28]}
Qb6 {[%clk 00:39:09]} {[%emt 00:00:18]} 40. h4 {[%clk 00:26:23]} {[%emt
00:07:10]} a4 {[%clk 00:39:29]} {[%emt 00:00:11]} 41. Rd1 {[%clk 00:26:22]}
{[%emt 00:00:31]} Bc5 {[%clk 00:39:38]} {[%emt 00:00:21]} 42. f5 {[%clk
00:26:39]} {[%emt 00:00:13]} 1-0

[Event "elllobregat Open Chess TnmT- 2nd Edition 2021"]
[Site "Castelldefels, Spain"]
[Date "2021.11.30"]
[Round "1.7"]
[White "Barbero Sendic, Alejandro"]
[Black "Iturrizaga Bonelli, Eduardo"]
[Result "0-1"]
[TimeControl "90min/40moves + 30min/end + 30sec increment per move starting from move 1"]
[WhiteTitle "FM"]
[BlackTitle "GM"]
[WhiteFideId "3001288"]
[BlackFideId "3901211"]
[WhiteElo "2307"]
[BlackElo "2606"]

1. e4 {[%emt 00:00:09]} c5 {[%clk 01:30:56]} 2. Nf3 {[%clk 01:31:12]} {[%emt
00:00:12]} e6 {[%emt 00:00:07]} 3. Nc3 {[%clk 01:31:28]} {[%emt 00:00:11]} a6
{[%clk 01:31:47]} {[%emt 00:00:05]} 4. g3 {[%emt 00:00:19]} Nc6 {[%clk
01:31:55]} {[%emt 00:00:12]} 5. Bg2 {[%emt 00:01:25]} g5 {[%emt 00:01:11]} 6.
h3 {[%clk 01:28:39]} {[%emt 00:02:59]} Bg7 {[%emt 00:03:00]} 7. Ne2 {[%emt
00:04:04]} h6 {[%emt 00:02:39]} 8. d4 {[%clk 01:24:14]} {[%emt 00:03:17]} cxd4
{[%clk 01:24:49]} {[%emt 00:00:06]} 9. Nexd4 {[%clk 01:24:30]} {[%emt
00:00:14]} Nge7 {[%clk 01:25:13]} {[%emt 00:00:06]} 10. O-O {[%clk 01:23:49]}
{[%emt 00:01:09]} O-O {[%emt 00:02:05]} 11. Re1 {[%emt 00:06:05]} d6 {[%emt
00:02:46]} 12. Be3 {[%emt 00:06:00]} Ng6 {[%clk 01:15:47]} {[%emt 00:02:18]} 13.
Qe2 {[%emt 00:06:38]} Nce7 {[%clk 01:07:17]} {[%emt 00:04:40]} 14. Rad1 {[%emt
00:06:16]} Qc7 {[%emt 00:08:39]} 15. c4 {[%emt 00:01:10]} e5 {[%clk 01:00:25]}
{[%emt 00:01:26]} 16. Nb3 {[%clk 01:04:55]} {[%emt 00:01:39]} Be6 {[%emt
00:11:26]} 17. c5 {[%clk 00:54:44]} {[%emt 00:00:08]} Bxb3 {[%clk 00:59:05]}
{[%emt 00:01:28]} 18. axb3 {[%clk 00:54:52]} {[%emt 00:00:21]} dxc5 {[%clk
00:59:29]} {[%emt 00:00:05]} 19. Rc1 {[%clk 00:55:06]} {[%emt 00:00:16]} b6
{[%clk 00:59:57]} {[%emt 00:00:03]} 20. b4 {[%clk 00:55:26]} {[%emt 00:00:10]}
Nc6 {[%emt 00:00:03]} 21. bxc5 {[%clk 00:55:45]} {[%emt 00:00:11]} Nd4 {[%emt
00:08:00]} 22. Bxd4 {[%clk 00:46:08]} {[%emt 00:02:10]} exd4 {[%emt 00:00:09]}
23. e5 {[%emt 00:10:15]} Rfe8 {[%emt 00:24:18]} 24. Qf1 {[%emt 00:05:07]} bxc5
{[%clk 00:43:57]} {[%emt 00:01:13]} 25. Nxd4 {[%emt 00:03:14]} Rab8 {[%emt
00:07:18]} 26. Qxa6 {[%emt 00:02:26]} Nxe5 {[%emt 00:02:50]} 27. Qa3 {[%emt
00:07:06]} Qd7 {[%emt 00:03:41]} 28. Nf3 {[%emt 00:08:54]} Nxf3+ {[%emt
00:01:54]} 29. Qxf3 {[%clk 00:08:01]} {[%emt 00:00:09]} Rxe1+ {[%clk 00:27:49]}
{[%emt 00:00:06]} 30. Rxe1 {[%emt 00:01:27]} Bxb2 {[%emt 00:03:43]} 31. Qd5
{[%emt 00:05:23]} Qxd5 {[%clk 00:19:16]} {[%emt 00:02:23]} 32. Bxd5 {[%clk
00:05:58]} {[%emt 00:00:09]} Rd8 {[%emt 00:00:27]} 33. Bc6 {[%emt 00:00:40]}
Rd2 {[%emt 00:01:29]} 34. Bb5 {[%clk 00:05:47]} {[%emt 00:00:38]} Bd4 {[%clk
00:18:33]} {[%emt 00:00:09]} 35. Re2 {[%clk 00:06:10]} {[%emt 00:00:07]} Rd1+
{[%clk 00:19:01]} {[%emt 00:00:03]} 36. Kg2 {[%clk 00:06:34]} {[%emt 00:00:05]}
Rc1 {[%emt 00:00:32]} 37. Ba4 {[%clk 00:06:27]} {[%emt 00:00:12]} Kg7 {[%emt
00:02:13]} 38. g4 {[%clk 00:03:18]} {[%emt 00:01:49]} Kf6 {[%emt 00:01:54]} 39.
Bb3 {[%emt 00:04:29]} c4 {[%emt 00:00:59]} 40. Rc2 {[%clk 00:32:54]} {[%emt
00:00:10]} cxb3 {[%emt 00:00:40]} 41. Rxc1 {[%clk 00:33:17]} {[%emt 00:00:06]}
b2 {[%emt 00:12:16]} 42. Rb1 {[%clk 00:19:52]} {[%emt 00:01:41]} Ke5 {[%clk
00:45:04]} {[%emt 00:00:09]} 43. Kf3 {[%clk 00:20:18]} {[%emt 00:00:04]} Kd5
{[%clk 00:45:29]} {[%emt 00:00:05]} 44. Ke2 {[%clk 00:20:41]} {[%emt 00:00:07]}
Kc4 {[%emt 00:00:27]} 45. Kd2 {[%clk 00:20:32]} {[%emt 00:00:17]} Kb3 {[%emt
00:00:04]} 46. f3 {[%clk 00:20:55]} {[%emt 00:00:05]} Be5 {[%clk 00:46:48]}
{[%emt 00:00:05]} 47. Kd3 {[%clk 00:21:06]} {[%emt 00:00:19]} Bf4 {[%emt
00:02:43]} 48. Kd4 {[%emt 00:00:05]} 0-1

[Event "elllobregat Open Chess TnmT- 2nd Edition 2021"]
[Site "Castelldefels, Spain"]
[Date "2021.11.30"]
[Round "1.8"]
[White "Puranik, Abhimanyu"]
[Black "Dudognon, Thibault"]
[Result "1/2-1/2"]
[TimeControl "90min/40moves + 30min/end + 30sec increment per move starting from move 1"]
[WhiteTitle "GM"]
[BlackTitle "FM"]
[WhiteFideId "5061245"]
[BlackFideId "20675569"]
[WhiteElo "2604"]
[BlackElo "2305"]

1. Nf3 {[%clk 01:30:46]} {[%emt 00:00:13]} d5 {[%clk 01:30:54]} {[%emt
00:00:06]} 2. g3 {[%clk 01:30:52]} {[%emt 00:00:24]} g6 {[%clk 01:31:17]}
{[%emt 00:00:07]} 3. Bg2 {[%clk 01:31:16]} {[%emt 00:00:07]} Bg7 {[%clk
01:31:36]} {[%emt 00:00:10]} 4. O-O {[%clk 01:31:03]} {[%emt 00:00:43]} e5
{[%clk 01:31:50]} {[%emt 00:00:16]} 5. d3 {[%clk 01:31:07]} {[%emt 00:00:26]}
Nc6 {[%clk 01:32:08]} {[%emt 00:00:11]} 6. e4 {[%clk 01:25:43]} {[%emt
00:05:55]} dxe4 {[%clk 01:32:29]} {[%emt 00:00:08]} 7. dxe4 {[%clk 01:26:02]}
{[%emt 00:00:11]} Qxd1 {[%clk 01:32:53]} {[%emt 00:00:05]} 8. Rxd1 {[%clk
01:26:22]} {[%emt 00:00:10]} Bg4 {[%clk 01:33:18]} {[%emt 00:00:04]} 9. Be3
{[%clk 01:25:38]} {[%emt 00:01:15]} Nd4 {[%clk 01:23:08]} {[%emt 00:10:40]} 10.
Bxd4 {[%clk 01:25:29]} {[%emt 00:00:39]} exd4 {[%clk 01:23:30]} {[%emt
00:00:08]} 11. h3 {[%clk 01:23:47]} {[%emt 00:02:13]} Bxf3 {[%clk 01:23:07]}
{[%emt 00:00:53]} 12. Bxf3 {[%clk 01:24:15]} {[%emt 00:00:02]} Ne7 {[%clk
01:21:06]} {[%emt 00:02:31]} 13. Na3 {[%clk 01:20:27]} {[%emt 00:04:19]} O-O-O
{[%clk 01:17:30]} {[%emt 00:04:04]} 14. Rd2 {[%clk 01:20:03]} {[%emt 00:00:55]}
Nc6 {[%clk 01:16:44]} {[%emt 00:01:16]} 15. Rad1 {[%clk 01:15:01]} {[%emt
00:05:32]} h5 {[%clk 01:12:53]} {[%emt 00:04:20]} 16. h4 {[%clk 01:12:55]}
{[%emt 00:02:37]} Bh6 {[%clk 00:55:44]} {[%emt 00:17:39]} 17. Re2 {[%clk
01:09:57]} {[%emt 00:03:28]} d3 {[%clk 00:54:38]} {[%emt 00:01:36]} 18. Ree1
{[%clk 01:10:23]} {[%emt 00:00:04]} Nb4 {[%clk 00:46:27]} {[%emt 00:08:41]}
1/2-1/2